[Event "*** MasterClass Titled Tuesday Blitz"]
[Site "Chess.com"]
[Date "2017.10.03"]
[Round "2"]
[White "Bad4life"]
[Black "roldieyi"]
[Result "1-0"]
[WhiteElo "2195"]
[BlackElo "2129"]
[TimeControl "180+2"]
[EndTime "13:18:29 PDT"]
[Termination "Bad4life won by resignation"]

1. e4 {[%clk 0:03:01.9]} 1... c6 {[%clk 0:02:41.3]} 2. Nc3 {[%clk 0:03:02.4]}
2... d5 {[%clk 0:02:41.8]} 3. Qe2 {[%clk 0:03:04]} 3... dxe4 {[%clk 0:02:41.4]}
4. Nxe4 {[%clk 0:03:05.9]} 4... Bf5 {[%clk 0:02:33.4]} 5. d3 {[%clk 0:03:05.9]}
5... e6 {[%clk 0:02:30.3]} 6. g4 {[%clk 0:03:06.8]} 6... Bg6 {[%clk 0:02:30.1]}
7. Bg2 {[%clk 0:03:07.9]} 7... Nf6 {[%clk 0:02:29.6]} 8. Bd2 {[%clk 0:03:06.9]}
8... Be7 {[%clk 0:02:29.1]} 9. O-O-O {[%clk 0:03:03.1]} 9... O-O {[%clk
0:02:13.2]} 10. Kb1 {[%clk 0:03:02.8]} 10... Nbd7 {[%clk 0:02:09.2]} 11. h4
{[%clk 0:03:02.5]} 11... Nc5 {[%clk 0:02:05.7]} 12. Nh3 {[%clk 0:02:53]} 12...
Qb6 {[%clk 0:02:00.5]} 13. Nxc5 {[%clk 0:02:44.8]} 13... Bxc5 {[%clk 0:01:55]}
14. h5 {[%clk 0:02:44.5]} 14... Nd5 {[%clk 0:01:42.7]} 15. Bxd5 {[%clk
0:02:33.9]} 15... exd5 {[%clk 0:01:38.6]} 16. hxg6 {[%clk 0:02:34.1]} 16... fxg6
{[%clk 0:01:40]} 17. Qe6+ {[%clk 0:02:31.9]} 17... Kh8 {[%clk 0:01:39.3]} 18.
Ng5 {[%clk 0:02:33.1]} 18... h6 {[%clk 0:01:39.7]} 19. Qxg6 {[%clk 0:02:33.9]}
1-0

[Event "*** MasterClass Titled Tuesday Blitz"]
[Site "Chess.com"]
[Date "2017.10.03"]
[Round "2"]
[White "TigranLPetrosyan"]
[Black "ruvat"]
[Result "1-0"]
[WhiteElo "2686"]
[BlackElo "2297"]
[TimeControl "180+2"]
[EndTime "13:18:44 PDT"]
[Termination "TigranLPetrosyan won by resignation"]

1. Nf3 {[%clk 0:03:01.9]} 1... d6 {[%clk 0:03:00.5]} 2. g3 {[%clk 0:03:03.8]}
2... g6 {[%clk 0:03:01.5]} 3. Bg2 {[%clk 0:03:05.7]} 3... Bg7 {[%clk 0:03:02.7]}
4. d4 {[%clk 0:03:06]} 4... Nf6 {[%clk 0:03:03.7]} 5. O-O {[%clk 0:03:07.9]}
5... O-O {[%clk 0:03:04.5]} 6. c4 {[%clk 0:03:09.8]} 6... c6 {[%clk 0:03:04.9]}
7. Nc3 {[%clk 0:03:11.7]} 7... Qa5 {[%clk 0:03:04]} 8. h3 {[%clk 0:03:12.6]}
8... e5 {[%clk 0:03:02.9]} 9. e4 {[%clk 0:03:09.5]} 9... Nbd7 {[%clk 0:03:01.7]}
10. Be3 {[%clk 0:03:09.3]} 10... exd4 {[%clk 0:02:57.3]} 11. Nxd4 {[%clk
0:03:11.2]} 11... Re8 {[%clk 0:02:39]} 12. Qc2 {[%clk 0:03:09.8]} 12... a6
{[%clk 0:02:29.2]} 13. Rfe1 {[%clk 0:03:03.5]} 13... Qc7 {[%clk 0:02:15]} 14.
Rad1 {[%clk 0:03:02.9]} 14... Ne5 {[%clk 0:02:13.2]} 15. b3 {[%clk 0:03:01.9]}
15... c5 {[%clk 0:02:11.9]} 16. Nde2 {[%clk 0:03:02.1]} 16... b5 {[%clk
0:02:12.3]} 17. cxb5 {[%clk 0:02:54.6]} 17... Rb8 {[%clk 0:01:39.1]} 18. f4
{[%clk 0:02:52.6]} 18... Ned7 {[%clk 0:01:38.6]} 19. a4 {[%clk 0:02:43.9]} 19...
h5 {[%clk 0:01:27.1]} 20. Qd3 {[%clk 0:02:35.6]} 1-0

[Event "*** MasterClass Titled Tuesday Blitz"]
[Site "Chess.com"]
[Date "2017.10.03"]
[Round "2"]
[White "Alexander_Donchenko"]
[Black "eldur16"]
[Result "1-0"]
[WhiteElo "2582"]
[BlackElo "2472"]
[TimeControl "180+2"]
[EndTime "13:20:02 PDT"]
[Termination "Alexander_Donchenko won by resignation"]

1. d4 {[%clk 0:03:01.9]} 1... g6 {[%clk 0:03:00.6]} 2. Nf3 {[%clk 0:03:02.1]}
2... Bg7 {[%clk 0:03:01.4]} 3. g3 {[%clk 0:03:03.5]} 3... d6 {[%clk 0:03:02.2]}
4. Bg2 {[%clk 0:03:04.9]} 4... Nf6 {[%clk 0:03:03.3]} 5. O-O {[%clk 0:03:06.1]}
5... O-O {[%clk 0:03:04.3]} 6. b3 {[%clk 0:03:07.5]} 6... Nbd7 {[%clk
0:03:03.8]} 7. Bb2 {[%clk 0:03:08.5]} 7... e5 {[%clk 0:03:04]} 8. dxe5 {[%clk
0:03:10.4]} 8... Ng4 {[%clk 0:03:04.9]} 9. Qc1 {[%clk 0:03:11.8]} 9... Ngxe5
{[%clk 0:03:02.3]} 10. Nxe5 {[%clk 0:03:13]} 10... dxe5 {[%clk 0:03:00.8]} 11.
Rd1 {[%clk 0:03:13.3]} 11... Re8 {[%clk 0:03:00.5]} 12. Nc3 {[%clk 0:03:11.5]}
12... c6 {[%clk 0:02:44.5]} 13. Ne4 {[%clk 0:03:10.3]} 13... Qc7 {[%clk
0:02:43.4]} 14. Nd6 {[%clk 0:03:06.1]} 14... Re6 {[%clk 0:02:41.4]} 15. Qd2
{[%clk 0:03:00]} 15... Nf8 {[%clk 0:02:27.8]} 16. Nxc8 {[%clk 0:02:44.1]} 16...
Rxc8 {[%clk 0:02:27.1]} 17. Bh3 {[%clk 0:02:45]} 17... f5 {[%clk 0:02:25.3]} 18.
e4 {[%clk 0:02:45.9]} 18... Qf7 {[%clk 0:02:10.9]} 19. exf5 {[%clk 0:02:25.8]}
19... gxf5 {[%clk 0:02:11.1]} 20. Qg5 {[%clk 0:02:26.8]} 20... Rce8 {[%clk
0:01:42.5]} 21. Bxf5 {[%clk 0:02:07.1]} 21... Rf6 {[%clk 0:01:42.9]} 22. Bd3
{[%clk 0:01:41.6]} 22... Rxf2 {[%clk 0:01:40.8]} 23. Bc4 {[%clk 0:01:29.5]}
23... Ne6 {[%clk 0:01:40.6]} 24. Bxe6 {[%clk 0:01:30.5]} 1-0

[Event "*** MasterClass Titled Tuesday Blitz"]
[Site "Chess.com"]
[Date "2017.10.03"]
[Round "2"]
[White "Rodalquilar"]
[Black "chess2matters"]
[Result "1-0"]
[WhiteElo "2493"]
[BlackElo "2299"]
[TimeControl "180+2"]
[EndTime "13:20:25 PDT"]
[Termination "Rodalquilar won by resignation"]

1. e4 {[%clk 0:03:01.9]} 1... e5 {[%clk 0:03:00.4]} 2. Nf3 {[%clk 0:03:02.6]}
2... Nc6 {[%clk 0:03:01]} 3. Bb5 {[%clk 0:03:03.4]} 3... a6 {[%clk 0:03:02]} 4.
Ba4 {[%clk 0:03:04.3]} 4... Nf6 {[%clk 0:03:03]} 5. d3 {[%clk 0:03:03.4]} 5...
b5 {[%clk 0:03:03.5]} 6. Bb3 {[%clk 0:03:04.3]} 6... Be7 {[%clk 0:03:05]} 7. a4
{[%clk 0:03:03.3]} 7... Bb7 {[%clk 0:02:57.1]} 8. O-O {[%clk 0:03:03.3]} 8...
O-O {[%clk 0:02:57]} 9. Nc3 {[%clk 0:03:04.5]} 9... b4 {[%clk 0:02:34.4]} 10.
Ne2 {[%clk 0:03:05.1]} 10... d5 {[%clk 0:02:30.7]} 11. Ng3 {[%clk 0:02:53.2]}
11... dxe4 {[%clk 0:02:29.4]} 12. dxe4 {[%clk 0:02:54.1]} 12... Nd4 {[%clk
0:02:25.5]} 13. Nxd4 {[%clk 0:02:43.5]} 13... exd4 {[%clk 0:02:22.4]} 14. e5
{[%clk 0:02:38.8]} 14... Ne4 {[%clk 0:02:16.8]} 15. Nf5 {[%clk 0:02:21.4]} 15...
g6 {[%clk 0:02:11.5]} 16. Nxe7+ {[%clk 0:02:07.9]} 16... Qxe7 {[%clk 0:02:12]}
17. Qxd4 {[%clk 0:02:09]} 17... Rad8 {[%clk 0:02:11.2]} 18. Qe3 {[%clk
0:02:09.9]} 18... Nc5 {[%clk 0:01:48.2]} 19. Bc4 {[%clk 0:02:07.5]} 19... Rfe8
{[%clk 0:01:46.6]} 20. b3 {[%clk 0:01:55.5]} 20... Qxe5 {[%clk 0:01:36.9]} 21.
Qxe5 {[%clk 0:01:57.4]} 21... Rxe5 {[%clk 0:01:38.3]} 22. Bf4 {[%clk 0:01:58.7]}
22... Ree8 {[%clk 0:01:28.1]} 23. Bxc7 {[%clk 0:01:17.4]} 23... Rc8 {[%clk
0:01:24.6]} 24. Bd6 {[%clk 0:01:13.7]} 24... Ne4 {[%clk 0:01:23]} 25. Bxb4
{[%clk 0:01:13.2]} 25... Nd2 {[%clk 0:01:24]} 26. Bxd2 {[%clk 0:01:13.3]} 1-0

[Event "*** MasterClass Titled Tuesday Blitz"]
[Site "Chess.com"]
[Date "2017.10.03"]
[Round "2"]
[White "mazetofonias"]
[Black "Tarlev_Konstantin"]
[Result "0-1"]
[WhiteElo "2482"]
[BlackElo "2624"]
[TimeControl "180+2"]
[EndTime "13:20:27 PDT"]
[Termination "Tarlev_Konstantin won by checkmate"]

1. d4 {[%clk 0:03:01.9]} 1... Nf6 {[%clk 0:03:00.6]} 2. Nf3 {[%clk 0:03:03.1]}
2... e6 {[%clk 0:03:00.9]} 3. Bg5 {[%clk 0:03:04.4]} 3... h6 {[%clk 0:02:59.4]}
4. Bh4 {[%clk 0:03:04.8]} 4... d6 {[%clk 0:02:59.5]} 5. Nbd2 {[%clk 0:03:05.9]}
5... g5 {[%clk 0:03:00.5]} 6. Bg3 {[%clk 0:03:06.3]} 6... Nh5 {[%clk 0:03:02.1]}
7. e4 {[%clk 0:03:07.2]} 7... Bg7 {[%clk 0:03:02.3]} 8. c3 {[%clk 0:03:08.5]}
8... Bd7 {[%clk 0:02:58.5]} 9. Bc4 {[%clk 0:03:09.3]} 9... Nc6 {[%clk 0:02:59]}
10. O-O {[%clk 0:03:10.5]} 10... Qe7 {[%clk 0:02:48.2]} 11. Re1 {[%clk
0:03:11.1]} 11... O-O {[%clk 0:02:47.9]} 12. a4 {[%clk 0:03:08]} 12... Nxg3
{[%clk 0:02:48.2]} 13. hxg3 {[%clk 0:03:08.7]} 13... Rae8 {[%clk 0:02:44.9]} 14.
Bd3 {[%clk 0:03:08.5]} 14... Qd8 {[%clk 0:02:45.4]} 15. Nc4 {[%clk 0:03:01.4]}
15... Kh8 {[%clk 0:02:34.1]} 16. e5 {[%clk 0:02:58.9]} 16... Bc8 {[%clk
0:02:29.5]} 17. Qe2 {[%clk 0:02:57.3]} 17... d5 {[%clk 0:02:28.9]} 18. Ne3
{[%clk 0:02:57.3]} 18... Ne7 {[%clk 0:02:02.1]} 19. Bc2 {[%clk 0:02:46.8]} 19...
Nf5 {[%clk 0:02:02.7]} 20. g4 {[%clk 0:02:32.5]} 20... Ne7 {[%clk 0:02:00.2]}
21. g3 {[%clk 0:02:32.1]} 21... Ng6 {[%clk 0:01:50.4]} 22. Kg2 {[%clk
0:02:32.5]} 22... f5 {[%clk 0:01:51.2]} 23. exf6 {[%clk 0:02:30.5]} 23... Qxf6
{[%clk 0:01:51.6]} 24. Rh1 {[%clk 0:02:25.3]} 24... Kg8 {[%clk 0:01:47.9]} 25.
Rae1 {[%clk 0:02:23.7]} 25... c6 {[%clk 0:01:47.7]} 26. b4 {[%clk 0:02:22.3]}
26... Bd7 {[%clk 0:01:33.9]} 27. Nf1 {[%clk 0:02:22.1]} 27... e5 {[%clk
0:01:25.9]} 28. Bxg6 {[%clk 0:02:19.6]} 28... e4 {[%clk 0:01:23.4]} 29. Ne5
{[%clk 0:02:15]} 29... Rxe5 {[%clk 0:01:24.1]} 30. dxe5 {[%clk 0:02:15.5]} 30...
Qxg6 {[%clk 0:01:25.6]} 31. Ne3 {[%clk 0:02:10.9]} 31... Bxe5 {[%clk 0:01:25.3]}
32. Rc1 {[%clk 0:02:10.8]} 32... Rf3 {[%clk 0:01:23.7]} 33. Rhd1 {[%clk
0:02:09.3]} 33... h5 {[%clk 0:01:15]} 34. gxh5 {[%clk 0:02:08.7]} 34... Qxh5
{[%clk 0:01:15.6]} 35. Rh1 {[%clk 0:02:08.3]} 35... Rxg3+ {[%clk 0:01:16.5]} 36.
Kf1 {[%clk 0:02:09.6]} 36... Qxh1# {[%clk 0:01:16.9]} 0-1

[Event "*** MasterClass Titled Tuesday Blitz"]
[Site "Chess.com"]
[Date "2017.10.03"]
[Round "2"]
[White "Superfelix"]
[Black "ruzomberok"]
[Result "1-0"]
[WhiteElo "2276"]
[BlackElo "2360"]
[TimeControl "180+2"]
[EndTime "13:21:01 PDT"]
[Termination "Superfelix won by checkmate"]

1. e4 {[%clk 0:03:00.5]} 1... c5 {[%clk 0:02:58.6]} 2. Nf3 {[%clk 0:03:01.4]}
2... Nc6 {[%clk 0:02:58.4]} 3. Bb5 {[%clk 0:03:00.3]} 3... g6 {[%clk 0:02:56.7]}
4. Bxc6 {[%clk 0:03:00.9]} 4... bxc6 {[%clk 0:02:57.3]} 5. h3 {[%clk 0:03:02.8]}
5... Bg7 {[%clk 0:02:56.2]} 6. O-O {[%clk 0:03:03.1]} 6... e5 {[%clk 0:02:51.4]}
7. d3 {[%clk 0:03:00.4]} 7... Ne7 {[%clk 0:02:51.5]} 8. Be3 {[%clk 0:03:00.4]}
8... d6 {[%clk 0:02:52.5]} 9. a3 {[%clk 0:03:01]} 9... O-O {[%clk 0:02:46.3]}
10. b4 {[%clk 0:02:51.3]} 10... cxb4 {[%clk 0:02:46.3]} 11. axb4 {[%clk
0:02:53.2]} 11... a5 {[%clk 0:02:47.5]} 12. bxa5 {[%clk 0:02:50.5]} 12... Rxa5
{[%clk 0:02:48]} 13. Rxa5 {[%clk 0:02:49.1]} 13... Qxa5 {[%clk 0:02:49.9]} 14.
Nfd2 {[%clk 0:02:48.4]} 14... d5 {[%clk 0:02:43.5]} 15. Nb3 {[%clk 0:02:47.2]}
15... Qc7 {[%clk 0:02:43.2]} 16. Bc5 {[%clk 0:02:46.1]} 16... Re8 {[%clk
0:02:40.2]} 17. Qc1 {[%clk 0:02:46]} 17... Be6 {[%clk 0:02:35.7]} 18. Qa3 {[%clk
0:02:46.5]} 18... f5 {[%clk 0:02:32.7]} 19. f3 {[%clk 0:02:46.6]} 19... dxe4
{[%clk 0:02:31.3]} 20. dxe4 {[%clk 0:02:36.2]} 20... f4 {[%clk 0:02:29.2]} 21.
Rd1 {[%clk 0:02:33.8]} 21... Nc8 {[%clk 0:02:25.7]} 22. Nc3 {[%clk 0:02:30.9]}
22... Rd8 {[%clk 0:02:25.5]} 23. Rxd8+ {[%clk 0:02:29.7]} 23... Qxd8 {[%clk
0:02:27.4]} 24. Qa6 {[%clk 0:02:14.9]} 24... Qd7 {[%clk 0:02:15.3]} 25. Kh2
{[%clk 0:02:11]} 25... Bxb3 {[%clk 0:02:13.6]} 26. cxb3 {[%clk 0:02:11.2]} 26...
Bf8 {[%clk 0:02:14.9]} 27. b4 {[%clk 0:02:08.2]} 27... Bxc5 {[%clk 0:02:13.5]}
28. bxc5 {[%clk 0:02:10.1]} 28... Ne7 {[%clk 0:02:13.8]} 29. Qa8+ {[%clk
0:02:08.5]} 29... Kg7 {[%clk 0:02:13.5]} 30. Qb8 {[%clk 0:02:09.5]} 30... Qd4
{[%clk 0:01:58.4]} 31. Qd6 {[%clk 0:02:05]} 31... Qxc3 {[%clk 0:01:59.5]} 32.
Qxe7+ {[%clk 0:02:05.7]} 32... Kh6 {[%clk 0:01:56.7]} 33. h4 {[%clk 0:01:57.6]}
33... Qd4 {[%clk 0:01:49.4]} 34. Kh3 {[%clk 0:01:54.2]} 34... Qb2 {[%clk
0:01:45.4]} 35. g4 {[%clk 0:01:34.3]} 35... fxg3 {[%clk 0:01:40.3]} 36. Kg4
{[%clk 0:01:35]} 36... g5 {[%clk 0:01:23.1]} 37. Qf6# {[%clk 0:01:32.1]} 1-0

[Event "*** MasterClass Titled Tuesday Blitz"]
[Site "Chess.com"]
[Date "2017.10.03"]
[Round "2"]
[White "x-3738459472"]
[Black "cheese111"]
[Result "0-1"]
[WhiteElo "2366"]
[BlackElo "2348"]
[TimeControl "180+2"]
[EndTime "13:21:08 PDT"]
[Termination "cheese111 won by resignation"]

1. e4 {[%clk 0:03:01.1]} 1... d5 {[%clk 0:02:58.4]} 2. exd5 {[%clk 0:03:02]}
2... Nf6 {[%clk 0:02:59.9]} 3. Nf3 {[%clk 0:03:01.7]} 3... Bg4 {[%clk 0:03:01]}
4. h3 {[%clk 0:03:01.1]} 4... Bh5 {[%clk 0:02:58.2]} 5. c4 {[%clk 0:03:01.5]}
5... c6 {[%clk 0:02:57.5]} 6. d4 {[%clk 0:02:59.5]} 6... cxd5 {[%clk 0:02:57.9]}
7. Nc3 {[%clk 0:03:01.1]} 7... Nc6 {[%clk 0:02:55.5]} 8. cxd5 {[%clk 0:03:00.5]}
8... Nxd5 {[%clk 0:02:55.8]} 9. Bc4 {[%clk 0:03:01.5]} 9... Nxc3 {[%clk
0:02:52.4]} 10. bxc3 {[%clk 0:03:00.5]} 10... e6 {[%clk 0:02:53]} 11. Rb1 {[%clk
0:02:58.7]} 11... Be7 {[%clk 0:02:49.7]} 12. Be2 {[%clk 0:02:53.6]} 12... Qc7
{[%clk 0:02:47.7]} 13. O-O {[%clk 0:02:45.8]} 13... O-O {[%clk 0:02:48.4]} 14.
Qb3 {[%clk 0:02:45.6]} 14... b6 {[%clk 0:02:44.7]} 15. Qb5 {[%clk 0:02:46.2]}
15... Bg6 {[%clk 0:02:44]} 16. Ra1 {[%clk 0:02:40.1]} 16... Rac8 {[%clk
0:02:40.1]} 17. Bd2 {[%clk 0:02:35.8]} 17... Rfd8 {[%clk 0:02:34]} 18. Rfe1
{[%clk 0:02:34.2]} 18... Na5 {[%clk 0:02:32.6]} 19. Ne5 {[%clk 0:02:30]} 19...
Bd6 {[%clk 0:02:07.4]} 20. Nxg6 {[%clk 0:02:25.2]} 20... hxg6 {[%clk 0:02:07]}
21. Rac1 {[%clk 0:01:51.3]} 21... Nc4 {[%clk 0:02:05.2]} 22. Bxc4 {[%clk
0:01:49.6]} 22... Qxc4 {[%clk 0:02:07.1]} 23. Qxc4 {[%clk 0:01:50.9]} 23... Rxc4
{[%clk 0:02:08.4]} 24. Kf1 {[%clk 0:01:31.7]} 24... Rdc8 {[%clk 0:02:05]} 25.
Ke2 {[%clk 0:01:28.6]} 25... Ra4 {[%clk 0:02:05]} 26. Rc2 {[%clk 0:01:25.9]}
26... Rxd4 {[%clk 0:02:05.2]} 27. cxd4 {[%clk 0:01:23.5]} 27... Rxc2 {[%clk
0:02:05.7]} 28. a4 {[%clk 0:01:24.9]} 28... Rxd2+ {[%clk 0:02:05.2]} 29. Kxd2
{[%clk 0:01:25.2]} 29... Bb4+ {[%clk 0:02:07.1]} 30. Ke2 {[%clk 0:01:26.8]}
30... Bxe1 {[%clk 0:02:08.6]} 31. Kxe1 {[%clk 0:01:28.7]} 31... Kf8 {[%clk
0:02:09.7]} 32. Ke2 {[%clk 0:01:30.6]} 32... Ke7 {[%clk 0:02:11.3]} 33. Kd3
{[%clk 0:01:32.5]} 33... Kd6 {[%clk 0:02:12.8]} 34. Kc4 {[%clk 0:01:34.4]} 34...
Kc6 {[%clk 0:02:13.6]} 35. f4 {[%clk 0:01:34.9]} 35... a6 {[%clk 0:02:14.2]} 36.
g4 {[%clk 0:01:31.1]} 36... Kd6 {[%clk 0:02:15.3]} 37. h4 {[%clk 0:01:29.8]}
37... Kc6 {[%clk 0:02:15.9]} 38. Kc3 {[%clk 0:01:20.2]} 38... Kd5 {[%clk
0:02:16.4]} 39. Kd3 {[%clk 0:01:21.5]} 39... b5 {[%clk 0:02:17]} 40. a5 {[%clk
0:01:21.6]} 40... b4 {[%clk 0:02:11.7]} 41. g5 {[%clk 0:01:18.7]} 41... f6
{[%clk 0:02:12.5]} 42. gxf6 {[%clk 0:01:17.1]} 42... gxf6 {[%clk 0:02:13.4]} 43.
Ke3 {[%clk 0:01:19]} 43... Kc4 {[%clk 0:02:05.2]} 44. Ke4 {[%clk 0:01:14.7]}
44... b3 {[%clk 0:02:05.5]} 0-1

[Event "*** MasterClass Titled Tuesday Blitz"]
[Site "Chess.com"]
[Date "2017.10.03"]
[Round "2"]
[White "IM_Michal_Luch"]
[Black "Morf1us"]
[Result "1/2-1/2"]
[WhiteElo "2477"]
[BlackElo "2426"]
[TimeControl "180+2"]
[EndTime "13:21:15 PDT"]
[Termination "Game drawn by agreement"]

1. d4 {[%clk 0:03:01.9]} 1... Nf6 {[%clk 0:03:00.4]} 2. c4 {[%clk 0:03:02.4]}
2... e6 {[%clk 0:03:01]} 3. Nc3 {[%clk 0:03:02.4]} 3... c5 {[%clk 0:03:01.7]} 4.
d5 {[%clk 0:03:03]} 4... exd5 {[%clk 0:03:03.6]} 5. cxd5 {[%clk 0:03:04.7]} 5...
d6 {[%clk 0:03:05.2]} 6. Nf3 {[%clk 0:03:04.8]} 6... g6 {[%clk 0:03:04.8]} 7. h3
{[%clk 0:03:06.1]} 7... Bg7 {[%clk 0:03:03.2]} 8. e4 {[%clk 0:03:07.1]} 8... O-O
{[%clk 0:03:04.8]} 9. Bd3 {[%clk 0:03:08.6]} 9... a6 {[%clk 0:03:06]} 10. a4
{[%clk 0:03:08.9]} 10... Nbd7 {[%clk 0:03:07.3]} 11. O-O {[%clk 0:03:09.7]}
11... Nh5 {[%clk 0:03:08.8]} 12. Bg5 {[%clk 0:03:10]} 12... Bf6 {[%clk 0:03:10]}
13. Bh6 {[%clk 0:03:11.1]} 13... Re8 {[%clk 0:03:10]} 14. Qd2 {[%clk 0:03:05.1]}
14... Bg7 {[%clk 0:02:57.8]} 15. Bg5 {[%clk 0:03:05.2]} 15... Bf6 {[%clk
0:02:57.2]} 16. Be3 {[%clk 0:03:03]} 16... Bg7 {[%clk 0:02:54.2]} 17. Rfe1
{[%clk 0:02:59.3]} 17... Ne5 {[%clk 0:02:53.9]} 18. Be2 {[%clk 0:02:59.5]} 18...
Nxf3+ {[%clk 0:02:54.9]} 19. Bxf3 {[%clk 0:03:01.4]} 19... Nf6 {[%clk
0:02:56.5]} 20. Bg5 {[%clk 0:02:59.9]} 20... Qa5 {[%clk 0:02:47.2]} 21. Qf4
{[%clk 0:02:59]} 21... Qd8 {[%clk 0:02:18.5]} 22. Qh4 {[%clk 0:02:52.8]} 22...
h6 {[%clk 0:02:09.5]} 23. Bxh6 {[%clk 0:02:52.6]} 23... Bxh6 {[%clk 0:02:11.4]}
24. Qxh6 {[%clk 0:02:53.2]} 24... Nd7 {[%clk 0:02:13.3]} 25. Bg4 {[%clk
0:02:39.1]} 25... Ne5 {[%clk 0:02:11.9]} 26. Bxc8 {[%clk 0:02:39.1]} 26... Rxc8
{[%clk 0:02:13.8]} 27. f4 {[%clk 0:02:36]} 27... Nd3 {[%clk 0:02:14.8]} 28. Re3
{[%clk 0:02:36.8]} 28... c4 {[%clk 0:02:15.5]} 29. Rg3 {[%clk 0:02:16.1]} 29...
Qb6+ {[%clk 0:01:47.2]} 30. Kh2 {[%clk 0:02:14.9]} 30... Qxb2 {[%clk 0:01:48.6]}
31. Rb1 {[%clk 0:01:23]} 31... Qxc3 {[%clk 0:01:49.2]} 32. Rxg6+ {[%clk
0:01:17.1]} 32... fxg6 {[%clk 0:01:49.8]} 33. Rxb7 {[%clk 0:01:16.4]} 33... Qf6
{[%clk 0:01:39.8]} 34. Qh7+ {[%clk 0:01:07.5]} 34... Kf8 {[%clk 0:01:40.4]} 35.
Qh6+ {[%clk 0:01:06.9]} 35... Kg8 {[%clk 0:01:40.4]} 36. Qh7+ {[%clk 0:01:05.8]}
36... Kf8 {[%clk 0:01:41.5]} 37. Qh6+ {[%clk 0:01:06.6]} 1/2-1/2

[Event "*** MasterClass Titled Tuesday Blitz"]
[Site "Chess.com"]
[Date "2017.10.03"]
[Round "2"]
[White "toad"]
[Black "Kazan28"]
[Result "1-0"]
[WhiteElo "2178"]
[BlackElo "2162"]
[TimeControl "180+2"]
[EndTime "13:21:19 PDT"]
[Termination "toad won on time"]

1. d4 {[%clk 0:03:01.9]} 1... Nf6 {[%clk 0:03:00.5]} 2. c4 {[%clk 0:03:03]} 2...
g6 {[%clk 0:03:01.5]} 3. g3 {[%clk 0:03:04.2]} 3... Bg7 {[%clk 0:03:01.2]} 4.
Bg2 {[%clk 0:03:05.3]} 4... d6 {[%clk 0:03:02.5]} 5. Nf3 {[%clk 0:03:06.2]} 5...
O-O {[%clk 0:03:04]} 6. O-O {[%clk 0:03:07.3]} 6... Nc6 {[%clk 0:03:05.2]} 7.
Nc3 {[%clk 0:03:05.8]} 7... e5 {[%clk 0:03:06.5]} 8. dxe5 {[%clk 0:03:02.6]}
8... dxe5 {[%clk 0:03:07.1]} 9. Bg5 {[%clk 0:02:42.6]} 9... h6 {[%clk
0:03:02.7]} 10. Be3 {[%clk 0:02:39.5]} 10... Be6 {[%clk 0:02:58.4]} 11. b3
{[%clk 0:02:39]} 11... Kh7 {[%clk 0:02:53.1]} 12. Qxd8 {[%clk 0:02:32.7]} 12...
Rfxd8 {[%clk 0:02:53.4]} 13. Rad1 {[%clk 0:02:33.4]} 13... Ng4 {[%clk 0:02:46]}
14. Bc1 {[%clk 0:02:31.7]} 14... f5 {[%clk 0:02:46.7]} 15. Rxd8 {[%clk
0:01:56.9]} 15... Rxd8 {[%clk 0:02:42.3]} 16. Rd1 {[%clk 0:01:58.4]} 16... e4
{[%clk 0:02:40.7]} 17. Nd5 {[%clk 0:01:16.5]} 17... exf3 {[%clk 0:00:24]} 18.
exf3 {[%clk 0:01:17.7]} 18... Nf6 {[%clk 0:00:16.4]} 19. f4 {[%clk 0:01:19.2]}
1-0

[Event "*** MasterClass Titled Tuesday Blitz"]
[Site "Chess.com"]
[Date "2017.10.03"]
[Round "2"]
[White "TregubovP"]
[Black "catalin009"]
[Result "1-0"]
[WhiteElo "2524"]
[BlackElo "2350"]
[TimeControl "180+2"]
[EndTime "13:21:36 PDT"]
[Termination "TregubovP won by resignation"]

1. d4 {[%clk 0:03:01.9]} 1... f5 {[%clk 0:02:57.3]} 2. g3 {[%clk 0:03:00.4]}
2... Nf6 {[%clk 0:02:57.3]} 3. Bg2 {[%clk 0:03:01.7]} 3... e6 {[%clk 0:02:58.9]}
4. Nf3 {[%clk 0:03:01.8]} 4... Be7 {[%clk 0:02:58.8]} 5. O-O {[%clk 0:03:03]}
5... O-O {[%clk 0:03:00.4]} 6. b3 {[%clk 0:03:03.6]} 6... d6 {[%clk 0:02:59]} 7.
Bb2 {[%clk 0:03:04.8]} 7... Ne4 {[%clk 0:02:54.7]} 8. Nbd2 {[%clk 0:02:59.7]}
8... Bf6 {[%clk 0:02:52.8]} 9. Nxe4 {[%clk 0:02:58.9]} 9... fxe4 {[%clk
0:02:53.8]} 10. Nd2 {[%clk 0:03:00.4]} 10... d5 {[%clk 0:02:54.9]} 11. e3 {[%clk
0:02:59.5]} 11... Bd7 {[%clk 0:02:29.1]} 12. f3 {[%clk 0:02:59.5]} 12... exf3
{[%clk 0:02:29]} 13. Qxf3 {[%clk 0:02:50.8]} 13... Nc6 {[%clk 0:02:27]} 14. Ba3
{[%clk 0:02:39.2]} 14... Be7 {[%clk 0:02:17.7]} 15. Bxe7 {[%clk 0:02:39.4]}
15... Qxe7 {[%clk 0:02:16.7]} 16. Qe2 {[%clk 0:02:36.3]} 16... Be8 {[%clk
0:02:12.6]} 17. Rxf8+ {[%clk 0:02:30.8]} 17... Qxf8 {[%clk 0:02:14.5]} 18. Rf1
{[%clk 0:02:31.7]} 18... Qd6 {[%clk 0:02:10.7]} 19. c3 {[%clk 0:02:21.4]} 19...
Bg6 {[%clk 0:01:23.7]} 20. e4 {[%clk 0:02:21.8]} 20... Ne7 {[%clk 0:00:43.9]}
21. exd5 {[%clk 0:02:01.8]} 21... exd5 {[%clk 0:00:39.5]} 22. Bh3 {[%clk
0:01:57]} 22... Re8 {[%clk 0:00:30.2]} 23. Qe6+ {[%clk 0:01:55.9]} 23... Qxe6
{[%clk 0:00:26.1]} 24. Bxe6+ {[%clk 0:01:56.9]} 24... Kh8 {[%clk 0:00:27.8]} 25.
Nf3 {[%clk 0:01:54.8]} 25... c6 {[%clk 0:00:10.2]} 26. Ne5 {[%clk 0:01:55.2]}
26... a5 {[%clk 0:00:03.6]} 27. Nf7+ {[%clk 0:01:44.4]} 27... Bxf7 {[%clk
0:00:04.2]} 28. Rxf7 {[%clk 0:01:45.7]} 28... b6 {[%clk 0:00:04.3]} 29. Bd7
{[%clk 0:01:46]} 29... Rd8 {[%clk 0:00:02.4]} 30. Rxe7 {[%clk 0:01:46.9]} 1-0